Cogmind - Beta 13 @@@ ROGUE MODE // 2024.04.28 @ 10:18:48 Player: Gabe+Kate4EVR Result: Destroyed by Y-54 Guardian with Flak Gun Performance ------------- Evolutions (4) 2000 Regions Visited (8) 1600 Robots Destroyed (87) 435 Value Destroyed (2592) 2592 Prototype IDs (8) 160 Alien Tech Used (0) 0 Bonus (0) 0 TOTAL SCORE: 6787 Bonus ------- None Cogmind --------- Core Integrity 0/850 Matter 300/300 Energy 98/100 System Corruption 9% Temperature Cool (0) Movement Core (50) Location -6/Extension Parts ------- > --- POWER (1) -------- (None) > --- PROPULSION (4) --- (None) > --- UTILITY (6) ------ Signal Interpreter Advanced Targeting Computer > --- WEAPON (4) ------- Backup Laser III > --- INVENTORY (5) ---- Improved Heat Sink Advanced ECM Suite Mining Laser Plasma Cutter Peak State ------------ > --- POWER ------------ Nuclear Core > --- PROPULSION ------- Medium Treads Improved Medium Treads > --- UTILITY ---------- Large Storage Unit Large Storage Unit Improved Sensor Array Signal Interpreter Advanced Targeting Computer Hardened Medium Armor Plating > --- WEAPON ----------- Flak Gun Heavy Machine Gun Advanced Assault Cannon Advanced Assault Cannon > --- INVENTORY -------- Heavy Ion Engine Nuclear Core Advanced Heat Sink Hardened Medium Armor Plating Thermal Shield Advanced Assault Cannon EMP Blaster Improved Grenade Launcher Improved Datajack Mining Laser Plasma Cutter Makeshift Axe [Rating: 44] Favorites ----------- Power Nuclear Core Engine Ion Engine Power Core Nuclear Core Propulsion Light Treads Treads Light Treads Leg Aluminum Leg Wheel Wheel Hover Unit Airjet Utility Large Storage Unit Device Improved Sensor Array Storage Large Storage Unit Processor Signal Interpreter Hackware System Shield Protection Hardened Medium Armor Plating Weapon Advanced Assault Cannon Energy Gun EM Pulse Gun Ballistic Gun Flak Gun Ballistic Cannon Advanced Assault Cannon Launcher Improved Grenade Launcher Slashing Weapon Makeshift Axe Special Melee Weapon Improved Datajack Build | -11 -10 -9 -8 -7 -7 -7 -6 -6 ------- Run | Yrd Mat Mat Mat Fac Low Low Fac Ext Slots Evolved 8 | . . 2 2 2 . . 2 . Power . | . . . . . . . . . Propulsion 2 | . . . . . . . 2 . Utility 4 | . . 2 2 . . . . . Weapon 2 | . . . . 2 . . . . Parts Attached 133 | 8 6 25 27 3 3 10 51 . Power 10 | 1 . 1 3 . . . 5 . Engine 6 | 1 . 1 1 . . . 3 . Core 4 | . . . 2 . . . 2 . Reactor . | . . . . . . . . . Propulsion 42 | 2 . 6 8 . 1 4 21 . Treads 17 | . . 3 7 . 1 4 2 . Leg 7 | 2 . . 1 . . . 4 . Wheel 15 | . . . . . . . 15 . Hover 3 | . . 3 . . . . . . Flight . | . . . . . . . . . Utility 33 | 3 2 6 10 . . 2 10 . Device 11 | 2 . 2 3 . . . 4 . Storage 8 | 1 1 3 1 . . 1 1 . Processor 5 | . 1 1 3 . . . . . Hackware 1 | . . . . . . . 1 . Protection 8 | . . . 3 . . 1 4 . Artifact . | . . . . . . . . . Weapon 48 | 2 4 12 6 3 2 4 15 . Energy Gun 17 | 1 3 5 . . . . 8 . Energy Cannon . | . . . . . . . . . Ballistic Gun 10 | 1 . 4 1 1 . 1 2 . Ballistic Cannon 8 | . . 1 3 1 1 2 . . Launcher 9 | . 1 1 2 . 1 1 3 . Special Weapon . | . . . . . . . . . Impact Weapon . | . . . . . . . . . Slashing Weapon 3 | . . 1 . . . . 2 . Piercing Weapon . | . . . . . . . . . Special Melee Weapon 1 | . . . . 1 . . . . Unidentified Prototypes 4 | . . 4 . . . . . . Corrupted Parts 4 | . . 2 . . 1 . 1 . System Corruption 14 | . . 5 . . 3 . 6 . Parts Lost 41 | . . 1 1 . . 7 32 . Power 3 | . . . . . . . 3 . Propulsion 17 | . . 1 . . . 3 13 . Utility 8 | . . . 1 . . 2 5 . Weapon 13 | . . . . . . 2 11 . Highest Loss Streak 19 | . . 1 1 . . 4 19 . To Critical Strikes . | . . . . . . . . . Average Slot Usage (%) 92 | . 100 99 99 96 100 84 78 20 Engine 2 | . 14 11 . . . . . . Core 5 | . . . 8 7 7 7 5 . Treads 12 | . . 14 17 15 15 12 6 . Leg 1 | . 28 1 . . . . . . Wheel 1 | . . . . . . . 9 . Device 8 | . 2 11 12 7 7 7 10 . Storage 9 | . 14 11 9 7 7 11 12 . Processor 15 | . 11 22 20 15 15 15 13 13 Protection 8 | . . . 11 15 15 9 2 . Energy Gun 4 | . 24 16 . . . . 4 6 Ballistic Gun 5 | . 2 4 14 6 7 3 1 . Ballistic Cannon 10 | . . 1 3 19 22 12 5 . Naked Turns . | . . . . . . . . . Heaviest Build 74 | 14 19 35 49 59 59 74 73 2 Greatest Support 78 | 20 20 46 46 43 48 50 78 3 Greatest Overweight (x) 17 | . . 2 3 1 1 17 5 . Average Overweight (x) . | . . . . 1 1 1 . . Largest Inventory Capacity 20 | 8 10 15 15 15 15 15 20 5 Average Capacity 14 | 7 8 12 15 15 15 15 15 5 Most Carried 15 | 8 10 15 15 15 15 15 15 4 Average Carried 13 | 5 8 11 14 15 15 13 12 4 Final Capacity 15 | 8 10 15 15 15 15 15 5 5 Final Carried 15 | 8 10 15 15 15 15 11 4 4 Class Distribution -------------------- 48% | Mutant 46% | Skirmisher 3% | Scavenger-Mutant Dominant Class ---------------- Mutant | -10/Materials Mutant | -9/Materials Mutant | -8/Materials Skirmisher | -7/Factory Skirmisher | -7/Lower Caves Skirmisher | -7/Lower Caves Mutant | -6/Factory Mutant | -6/Extension Resources | -11 -10 -9 -8 -7 -7 -7 -6 -6 ----------- Run | Yrd Mat Mat Mat Fac Low Low Fac Ext Matter Collected 2985 | 167 132 469 491 . 447 478 801 . Remotely . | . . . . . . . . . Salvage Created 3504 | 23 238 864 766 . 219 154 1240 . Parts 188 | 8 18 46 45 . 9 8 54 . Haulers Intercepted 7 | . . 3 3 . . . 1 . Recyclers Shooed 7 | 1 2 3 . . . . 1 . Parts Field Recycled . | . . . . . . . . . Retrieved Matter . | . . . . . . . . . Parts Self-Destructed 17 | . . . . . 8 9 . . Prevented . | . . . . . . . . . Kills | -11 -10 -9 -8 -7 -7 -7 -6 -6 ------- Run | Yrd Mat Mat Mat Fac Low Low Fac Ext Combat Hostiles Destroyed 52 | . 3 11 10 . 6 5 17 . Melee 4 | . . . . . . . 4 . Guns 19 | . . 8 6 . . . 5 . Cannons 15 | . . 1 3 . 3 4 4 . AOE 13 | . 3 2 1 . 3 1 3 . Classes Destroyed 16 | 1 3 5 3 . 2 1 1 . Worker 5 | . . 1 . . . . 4 . Builder 5 | . . . 1 . . . 4 . Tunneler 3 | 2 . . . . . . 1 . Hauler 7 | . . 3 3 . . . 1 . Recycler 10 | . 2 3 2 . . . 3 . Mechanic 2 | . . . 1 . . . 1 . Watcher 3 | . 2 1 . . . . . . Swarmer 7 | . 3 2 . . . . 2 . Grunt 27 | . . 7 2 . 4 4 10 . Brawler 1 | . . . . . 1 . . . Duelist 1 | . . 1 . . . . . . Sentry 5 | . . 1 4 . . . . . Hunter 6 | . . . 4 . . . 2 . Programmer 3 | . . . . . 1 . 2 . Heavy 1 | . . . . . . . 1 . Behemoth 1 | . . . . . . 1 . . Decomposer 1 | . . . . . . 1 . . Best Kill Streak 5 | 1 3 5 5 . 4 4 5 . Combat Bots Only 4 | . 3 3 4 . 4 4 4 . Max Kills in Single Turn 3 | 1 2 3 2 . 2 2 2 . Gunslinging . | . . . . . . . . . Exploded 2 | . 2 2 1 . 2 1 2 . Melee 1 | . . . . . . . 1 . Uniques/NPCs Destroyed . | . . . . . . . . . Combat | -11 -10 -9 -8 -7 -7 -7 -6 -6 -------- Run | Yrd Mat Mat Mat Fac Low Low Fac Ext Hostile Shots Fired 527 | . 8 38 87 2 13 58 312 9 Missed 144 | . 1 12 25 . 4 8 90 4 Damage Taken 6723 | . 87 372 818 29 143 1275 3987 12 Core 1405 | . . 39 108 12 12 382 840 12 Absorbed by Shields . | . . . . . . . . . Redirected to Shielding 57 | . . . 7 2 2 46 . . Ignored by Resistances 56 | . . . . . . . 56 . Core Remaining (%) 82 | 100 100 90 80 . . 42 . . Volleys Fired 230 | 7 11 46 58 . 8 25 72 3 Largest 4 | 2 2 2 2 . 4 4 4 1 Hottest 180 | 60 90 101 80 . 172 180 160 40 Shots Fired 458 | 14 22 86 116 . 33 45 139 3 Gun 324 | 14 20 81 103 . 9 3 91 3 Cannon 122 | . . 4 11 . 22 41 44 . Launcher 12 | . 2 1 2 . 2 1 4 . Special . | . . . . . . . . . Kinetic 292 | 7 1 32 114 . 31 44 63 . Thermal 111 | . 7 30 . . . . 71 3 Explosive 10 | . 2 1 1 . 2 1 3 . Electromagnetic 45 | 7 12 23 1 . . . 2 . Robot Hit Streak 20 | 4 7 20 12 . 10 8 13 1 Robot Miss Streak 7 | 2 3 2 7 . 5 3 4 2 Penetration Max . | . . . . . . . . . Secondary Targets 5 | . . 3 . . . . 2 . Max Gunslinging Chain 1 | . . 1 . . . . 1 . Shots Hit Robots 359 | 8 10 66 90 . 16 28 140 1 Core Hits 185 | 5 9 32 40 . 15 15 69 . Critical Kills . | . . . . . . . . . Critical Parts Destroyed . | . . . . . . . . . Critical Strikes 14 | . . 3 . . 1 3 7 . Burn 2 | . . 2 . . . . . . Blast 6 | . . 1 . . 1 3 1 . Sever 6 | . . . . . . . 6 . Melee Attacks 40 | . . . . . . . 40 . Impact . | . . . . . . . . . Slashing 40 | . . . . . . . 40 . Piercing . | . . . . . . . . . Sneak Attacks 13 | . . . . . . . 13 . Combat Hostiles . | . . . . . . . . . Follow-up Attacks . | . . . . . . . . . Damage Inflicted 9381 | 87 279 1251 1484 . 571 881 4801 27 Guns 3584 | 87 143 989 1066 . 52 45 1175 27 Cannons 1999 | . . 86 205 . 248 665 795 . Explosions 2006 | . 136 176 213 . 271 171 1039 . Melee 1779 | . . . . . . . 1779 . Ramming 13 | . . . . . . . 13 . Kinetic 3726 | 49 8 377 1271 . 300 710 1011 . Thermal 1397 | . 51 386 . . . . 933 27 Explosive 1913 | . 136 150 213 . 271 171 972 . Electromagnetic 553 | 38 84 338 . . . . 93 . Impact . | . . . . . . . . . Slashing 1779 | . . . . . . . 1779 . Piercing . | . . . . . . . . . Highest Corruption 9 | . . 5 . . 3 3 9 9 Average Corruption 4 | . . 3 . . 3 3 7 9 Corruption Purged . | . . . . . . . . . Corruption Blocked . | . . . . . . . . . Effects 72 | . . 16 . . 9 21 25 1 Message Errors 15 | . . 1 . . 2 6 6 . Matter Fused 22 | . . 6 . . 2 5 9 . Heat Flow Errors 8 | . . 1 . . 2 5 . . Energy Discharges 8 | . . 2 . . . 1 4 1 Parts Rejected 2 | . . 1 . . . . 1 . Parts Fused 3 | . . 2 . . . 1 . . Data Loss (minor) 7 | . . 2 . . 2 2 1 . Data Loss (major) 3 | . . . . . . 1 2 . Misfires 3 | . . 1 . . 1 . 1 . Alerts 1 | . . . . . . . 1 . Overload Shots . | . . . . . . . . . Overflow Damage 489 | . . 11 . . . . 478 . Projectiles 7 | . . 1 . . . . 6 . Explosions 123 | . . 10 . . . . 113 . Melee 359 | . . . . . . . 359 . Knockbacks 19 | . . 2 5 . 3 . 9 . Impact 1 | . . . . . . . 1 . Kinetic 17 | . . 1 5 . 3 . 8 . Secondary 1 | . . 1 . . . . . . Self-Inflicted Damage 129 | . 32 48 10 . . . 39 . Shots 4 | . 1 1 1 . . . 1 . Rammed 1 | . . . . . . . 1 . Targets Rammed 2 | . . . . . . . 2 . Kicked 1 | . . . . . . . 1 . Crushed . | . . . . . . . . . Highest Temperature 553 | 40 102 246 92 . 442 553 235 . Average Temperature 103 | 23 29 52 32 . 163 203 74 . Received Heat Transfer 1476 | . . 135 126 . 54 225 936 . Effects 9 | . . . . . 1 8 . . Shutdowns 2 | . . . . . 1 1 . . Matter Decay 3 | . . . . . . 3 . . Short Circuit 1 | . . . . . . 1 . . Damage (minor) 1 | . . . . . . 1 . . Damage (core) 2 | . . . . . . 2 . . Siege Activations . | . . . . . . . . . Robots Corrupted . | . . . . . . . . . Combat Hostiles . | . . . . . . . . . Parts Fried . | . . . . . . . . . Impact Corruptions 1 | . . 1 . . . . . . Robots Melted 2 | . . . . . . . 2 . Combat Hostiles 1 | . . . . . . . 1 . Parts Melted 9 | . . . . . . . 9 . Heat Transferred 3565 | . 148 1049 . . . . 2294 74 Parts Sabotaged . | . . . . . . . . . Parts Stolen . | . . . . . . . . . Parts Stripped . | . . . . . . . . . Power Chain Reactions 1 | . . 1 . . . . . . Alert | -11 -10 -9 -8 -7 -7 -7 -6 -6 ------- Run | Yrd Mat Mat Mat Fac Low Low Fac Ext Peak Influence 320 | 10 163 185 320 64 . . 126 49 Initial 68 | . 6 68 52 64 . . . 34 Average 91 | 4 100 107 181 64 . . 43 38 Maximum Alert Level 1 | . . . 1 . . . . . Low Security (%) 91 | 100 100 100 57 100 . . 100 100 Level 1 8 | . . . 42 . . . . . Level 2 . | . . . . . . . . . Level 3 . | . . . . . . . . . Level 4 . | . . . . . . . . . Level 5 . | . . . . . . . . . High Security . | . . . . . . . . . Max Security . | . . . . . . . . . Squads Dispatched 13 | . . 2 1 1 . . 9 . Investigation 1 | . . 1 . . . . . . Extermination 3 | . . . . 1 . . 2 . Reinforcement 8 | . . 1 1 . . . 6 . Assault . | . . . . . . . . . Garrison 1 | . . . . . . . 1 . Intercept . | . . . . . . . . . Searches Triggered . | . . . . . . . . . Construction Impeded 3 | . . . . . . . 3 . Haulers Reinforced 1 | . . . . . . . 1 . Active Scanning Responses . | . . . . . . . . . Cargo Convoy Interrupts . | . . . . . . . . . Stealth | -11 -10 -9 -8 -7 -7 -7 -6 -6 --------- Run | Yrd Mat Mat Mat Fac Low Low Fac Ext Distress Signals 6 | . . 2 4 . . . . . Communications Jammed . | . . . . . . . . . Distress Signals . | . . . . . . . . . Times Spotted 98 | . 6 20 18 1 6 5 38 4 Peak Tracking Total 14 | . 3 5 4 1 4 4 14 4 Tactical Retreats 3 | . . 1 . . . . 2 . Traps | -11 -10 -9 -8 -7 -7 -7 -6 -6 ------- Run | Yrd Mat Mat Mat Fac Low Low Fac Ext Traps Triggered 1 | . . . . . . . 1 . Indirectly . | . . . . . . . . . Trap Hack Attempts . | . . . . . . . . . Triggered . | . . . . . . . . . Disarmed . | . . . . . . . . . Reprogrammed . | . . . . . . . . . Reused . | . . . . . . . . . Traps Extracted . | . . . . . . . . . Installed . | . . . . . . . . . Triggered 1 | . . . . . . 1 . . Machines | -11 -10 -9 -8 -7 -7 -7 -6 -6 ---------- Run | Yrd Mat Mat Mat Fac Low Low Fac Ext Machines Disabled 5 | . . 1 . . . . 4 . Max in Single Turn 3 | . . 1 . . . . 3 . Machines Repaired . | . . . . . . . . . Machines Dismantled . | . . . . . . . . . Machines Sabotaged . | . . . . . . . . . Overloaded Fab Kills . | . . . . . . . . . Hacking | -11 -10 -9 -8 -7 -7 -7 -6 -6 --------- Run | Yrd Mat Mat Mat Fac Low Low Fac Ext Machines Accessed 3 | . . 1 1 . . . 1 . Terminals 2 | . . 1 1 . . . . . Fabricators . | . . . . . . . . . Repair Stations . | . . . . . . . . . Recycling Units . | . . . . . . . . . Scanalyzers 1 | . . . . . . . 1 . Garrison Access . | . . . . . . . . . Total Hacks 10 | . . 4 2 . . . 4 . Successful 3 | . . 2 1 . . . . . Failed 7 | . . 2 1 . . . 4 . Catastrophic 3 | . . 2 . . . . 1 . Database Lockouts . | . . . . . . . . . Manual 4 | . . 4 . . . . . . Terminals 6 | . . 4 2 . . . . . Fabricators . | . . . . . . . . . Repair Stations . | . . . . . . . . . Recycling Units . | . . . . . . . . . Scanalyzers 4 | . . . . . . . 4 . Garrison Access . | . . . . . . . . . Terminal Hacks 3 | . . 2 1 . . . . . Prototype ID Bank 3 | . . 2 1 . . . . . Fabricator Hacks . | . . . . . . . . . Repair Station Hacks . | . . . . . . . . . Recycling Unit Hacks . | . . . . . . . . . Scanalyzer . | . . . . . . . . . Garrison Access Hacks . | . . . . . . . . . Unauthorized Hacks . | . . . . . . . . . Terminals . | . . . . . . . . . Fabricators . | . . . . . . . . . Repair Stations . | . . . . . . . . . Recycling Units . | . . . . . . . . . Scanalyzers . | . . . . . . . . . Garrison Access . | . . . . . . . . . Data Cores Recovered . | . . . . . . . . . Used . | . . . . . . . . . Hacking Detections 3 | . . 1 1 . . . 1 . Full Trace Events 1 | . . 1 . . . . . . Feedback Events . | . . . . . . . . . Feedback Blocked . | . . . . . . . . . Robot Schematics Acquired . | . . . . . . . . . Robots Built . | . . . . . . . . . Authchips . | . . . . . . . . . Time . | . . . . . . . . . Total Robot Build Rating . | . . . . . . . . . Part Schematics Acquired . | . . . . . . . . . Parts Built . | . . . . . . . . . Authchips . | . . . . . . . . . Time . | . . . . . . . . . Total Part Build Rating . | . . . . . . . . . Parts Repaired . | . . . . . . . . . Time . | . . . . . . . . . Parts Recycled . | . . . . . . . . . Recycled Matter . | . . . . . . . . . Retrieved Matter . | . . . . . . . . . Retrieved Components . | . . . . . . . . . Parts Scanalyzed . | . . . . . . . . . Part Schematics Acquired . | . . . . . . . . . Parts Damaged . | . . . . . . . . . Bothacking | -11 -10 -9 -8 -7 -7 -7 -6 -6 ------------ Run | Yrd Mat Mat Mat Fac Low Low Fac Ext Used RIF Installer . | . . . . . . . . . Robots Hacked . | . . . . . . . . . Non-combat . | . . . . . . . . . Combat . | . . . . . . . . . Robot Hacks Applied . | . . . . . . . . . Relay Couplers Released . | . . . . . . . . . Fabnet Peak Effective % . | . . . . . . . . . Robots Rewired . | . . . . . . . . . Allies Hacked . | . . . . . . . . . Hacks Repelled . | . . . . . . . . . Allies | -11 -10 -9 -8 -7 -7 -7 -6 -6 -------- Run | Yrd Mat Mat Mat Fac Low Low Fac Ext Total Allies . | . . . . . . . . . Largest Group . | . . . . . . . . . Highest-Rated Group . | . . . . . . . . . Highest-Rated Ally . | . . . . . . . . . Total Orders . | . . . . . . . . . Ally Attacks . | . . . . . . . . . Total Damage . | . . . . . . . . . Kills . | . . . . . . . . . Allies Corrupted . | . . . . . . . . . Allies Melted . | . . . . . . . . . Intel | -11 -10 -9 -8 -7 -7 -7 -6 -6 ------- Run | Yrd Mat Mat Mat Fac Low Low Fac Ext Robot Analysis Total . | . . . . . . . . . Derelict Logs Recovered 1 | . . . . . 1 . . . Drone Launches . | . . . . . . . . . Drone Recoveries . | . . . . . . . . . Exploration | -11 -10 -9 -8 -7 -7 -7 -6 -6 ------------- Run | Yrd Mat Mat Mat Fac Low Low Fac Ext Turns Passed 7176 | 138 335 928 846 298 1907 1223 1481 20 Spaces Moved 3137 | 83 233 489 335 123 780 439 627 28 Core 84 | 5 . . . . . 15 36 28 Treads 2230 | . . 282 334 123 780 424 287 . Legs 365 | 78 233 48 1 . . . 5 . Wheels 299 | . . . . . . . 299 . Hover 159 | . . 159 . . . . . . Flight . | . . . . . . . . . Fastest Speed 50 | 50 120 116 160 240 240 240 50 50 Average Speed 191 | 115 120 141 182 240 240 260 158 50 Slowest Speed 900 | 120 120 180 330 240 240 900 330 50 Overloaded Moves . | . . . . . . . . . Propulsion Burnouts . | . . . . . . . . . Robots Hopped . | . . . . . . . . . Cave-ins Triggered . | . . . . . . . . . Exploration Rate (%) 28 | 4 40 44 25 3 84 34 13 11 Regions Visited 8 Branch Regions 3 Pre-discovered Areas 1 | . . . . . 1 . . . Known Exits Taken 6 | . . 1 1 1 1 1 1 . Unknown Exits Taken 2 | 1 1 . . . . . . . Scrap Searched 1 | . . . . . 1 . . . Spaces Dug . | . . . . . . . . . Terrain Destroyed 105 | . 19 6 8 . 27 16 29 . Melee . | . . . . . . . . . Projectile 16 | . . . . . 7 5 4 . AOE 89 | . 19 6 8 . 20 11 25 . Terrain Rammed . | . . . . . . . . . Walls Destroyed . | . . . . . . . . . Machines Disabled . | . . . . . . . . . Actions | -11 -10 -9 -8 -7 -7 -7 -6 -6 --------- Run | Yrd Mat Mat Mat Fac Low Low Fac Ext Total 3888 | 110 270 649 464 125 796 481 962 31 Wait 179 | . . 35 6 . 3 6 129 . Move 3129 | 82 232 488 334 122 779 438 626 28 Hop . | . . . . . . . . . Pick Up 71 | 10 10 24 13 . 1 . 13 . Fast Attach 61 | 8 2 13 10 2 . 3 23 . Attach 29 | . . 4 4 . . 6 15 . Detach 11 | . . 2 3 . . 2 4 . Swap 43 | . 4 8 13 1 3 1 13 . Drop 93 | 3 11 29 23 . 2 . 25 . Fire 230 | 7 11 46 58 . 8 25 72 3 Melee 40 | . . . . . . . 40 . Ram 1 | . . . . . . . 1 . Kick 1 | . . . . . . . 1 . Crush . | . . . . . . . . . Escape Stasis . | . . . . . . . . . Rewire . | . . . . . . . . . Trap . | . . . . . . . . . Miscellaneous . | . . . . . . . . . Route ------- -11/Scrapyard -10/Materials -9/Materials (discovered 2 exits: *Mat / *Min) -8/Materials -7/Factory -7/Lower Caves -7/Lower Caves -6/Factory -6/Extension History --------- Turn | Location | Event 7 | -11/Scrapyard | Discovered new exit (range 16) 139 | -11/Scrapyard | Entered Materials 307 | -10/Materials | Build established: Mutant 402 | -10/Materials | Discovered new exit (range 8) 474 | -10/Materials | Entered another Materials area 474 | -9/Materials | Evolved 2 slots: Utility x2 1020 | -9/Materials | Discovered new exit (range 5) 1025 | -9/Materials | Identified exit to Mines 1273 | -9/Materials | Discovered new exit (range 9) 1387 | -9/Materials | Identified exit to Materials 1402 | -9/Materials | Entered another Materials area 1402 | -8/Materials | Evolved 2 slots: Utility x2 2154 | -8/Materials | Discovered new exit (range 16) 2234 | -8/Materials | Identified exit to Factory 2248 | -8/Materials | Entered Factory 2248 | -7/Factory | Evolved 2 slots: Weapon x2 2469 | -7/Factory | Discovered new exit (range 11) 2495 | -7/Factory | Identified exit to Lower Caves 2546 | -7/Factory | Entered Lower Caves 2573 | -7/Lower Caves | Build established: Skirmisher 4386 | -7/Lower Caves | Discovered new exit (range 10) 4410 | -7/Lower Caves | Identified exit to Lower Caves 4453 | -7/Lower Caves | Entered another Lower Caves area 4600 | -7/Lower Caves | Discovered new exit (range 8) 4614 | -7/Lower Caves | Identified exit to Factory 4938 | -7/Lower Caves | Spotted B-75 Beast 5002 | -7/Lower Caves | Lost 3 parts (1n1u1w) 5037 | -7/Lower Caves | Core integrity fell below 50% 5038 | -7/Lower Caves | Destroyed B-75 Beast 5055 | -7/Lower Caves | Lost 4 parts (2n1u1w) 5275 | -7/Lower Caves | Build established: Mutant 5676 | -7/Lower Caves | Entered Factory 5676 | -6/Factory | Evolved 2 slots: Propulsion x2 5851 | -6/Factory | Build established: Skirmisher 5991 | -6/Factory | Lost 3 parts (1n2w) 6117 | -6/Factory | Lost 3 parts (1n1u1w) 6239 | -6/Factory | Build established: Mutant 6700 | -6/Factory | Lost 3 parts (2n1w) 7100 | -6/Factory | Garrison activated, responded to threat 7108 | -6/Factory | Core integrity fell below 50% 7132 | -6/Factory | Core integrity fell below 20% 7141 | -6/Factory | Discovered new exit (range 16) 7157 | -6/Factory | Identified exit to Extension 7157 | -6/Factory | Entered Extension 7160 | -6/Extension | Lost 19 parts (2p7n4u6w) 7177 | -6/Extension | Destroyed by Y-54 Guardian with Flak Gun Last Messages --------------- 07127_ Hpw. Shock Rifle destroyed. 07128_ R-10 Processor collects Corrupted Carbon-fiber Leg. 07128_ S-27 Virus destroyed. 07129_ Mak. Axe destroyed. 07130_ Dropped Hcp. Storage Unit. 07131_ Dropped Thermal Shield. 07131_ Acquired 17 matter. 07132_ System corrupted: Mic. Nuclear Core rejected. 07132_ S-27 Virus destroyed. 07137_ Acquired 66 matter. 07141_ S-27 Virus destroyed. 07141_ EXIT=FOUND 07153_ S-27 Virus destroyed. 07157_ EXIT=IDENTIFIED: EXTENSION LOCATION=EXTENSION GOAL=ESCAPE 07158_ System corrupted: Energy discharge (-27). 07159_ A-15 Conveyor exits Transfer Station. 07159_ K-01 Serf exits Transfer Station. 07171_ O-24 Administrator: "IFF HANDSHAKE FAILED. SECURING TERMINAL." Map ----- +----------------------------------------------------+ | | | | | | | | | | | | | | | | | | | | | | | | | | | ?????????????????????????????????? | | ?????????????????????????????????? | | ?????????????????????????????????? | | ?????????????????????????????????? | | ?????????????????????????????????? | | ????#####+##?????????????????????? | | ????# #?????????????????????? | | ????# =hh #?????????????????????? | | ????#[ gl #?????????????????????? | | ????# #?#???????????????????? | | ????? Y] # +???????????????????? | | ??????? Y # #????#??????????????? | | ?????####@## #### #####??????????? | | ?????# g ????????? | | ?????# #??????????? | | ?????# #??????????? | | ?????# #??????????? | | ?????# #??????????? | | ?????# #############??????????? | | ?????# #??????????????????????? | | ?????# #??????????????????????? | | ?????# #??????????????????????? | | ?????# #??????????????????????? | | ?????# #??????????????????????? | | ?????# #??????????????????????? | | ?????# #??????????????????????? | | ?????# #??????????????????????? | | ?????# #??????????????????????? | | ?????# #??????????????????????? | | ?????# ####??????????????????????? | | ?????# #?????????????????????????? | | ?????# #?????????????????????????? | | ?????# #?????????????????????????? | | ?????# #?????????????????????????? | | ?##### #####?????????????????????? | | ?# "" "" #?????????????????????? | | ?# " " ##########????????????? | +----------------------------------------------------+ Best States ------------- Heat Dissipation 56 Energy Generation 15 Energy Capacity 280 Matter Stores 300 Matter Capacity 300 Sight Range 20 Robot Scan Range 15 Terrain Scan Range 16 Terrain Scan Density 10 ECM Strength 2 Armor Coverage 225 Resistance: TH 20 Core Shielding 20 Evasion (%) 55 Targeting Accuracy 8 Recoil Reduction 6 Item Schematics ----------------- None Robot Schematics ------------------ None Fabricated ------------ Nothing Alien Tech Used ----------------- None Achievements -------------- None Challenges ------------ None Game ------ Seed AerolevAnalysisLance Manual? 0 Play Time 00:37:25 Cumulative 134.5 hours Start 2024.04.27 @ 17:16:15 End 2024.04.28 @ 10:18:48 Sessions 2 Manual Loads 0 Difficulty Rogue Special Mode None Game No. 272 Rogue 272 Adventurer 0 Explorer 0 Win Type - Total 0 Types 0/0/0/0/0/0/0/0/0 Lore% 35 Gallery% 55 Achievement% 37 Wizard Run 0 Options --------- Layout 0 ASCII 0 Keyboard 1 Movement Numpad Keybinds 0 Fullscreen 2 Font 18/X11 Map View 76x50 Zoom Use 0% Tactical HUD 1 Map Filters NONE Filters NONE Steam 1 RUN: bfb94763-2d05-4343-9c9b-c6c499a0510c